[Event "7th Cesme Open-B 2019"]
[Site "Cesme"]
[Date "2019.06.24"]
[Round "1"]
[White "Yucesoy, Atil"]
[Black "Mermer, Yunus"]
[Result "1-0"]
[ECO "D02"]
[WhiteElo "1861"]
[BlackElo "1479"]
[Annotator "NA"]
[PlyCount "99"]
[EventDate "2019.06.24"]
[EventType "swiss"]
[EventCountry "TUR"]
[SourceTitle "playchess.com"]
[Source "ChessBase"]
[SourceQuality "1"]
[TimeControl "5400+30"]

1. d4 d5 2. Bf4 Bf5 3. e3 e6 4. Nf3 Nf6 5. Bd3 Bg6 {[%emt 0:00:30]} 6. Ne5 {[%emt 0:10:00]} Bd6 {[%emt 0:02:30]} 7. c4 {[%emt 0:06:30]} c6 {[%emt 0:04:30]} 8. Qb3 {[%emt 0:10:30]} b6 {[%emt 0:00:30]} 9. c5 {[%emt 0:09:30]} Bc7 {[%emt 0:02:30]} 10. Nxc6 {[%emt 0:03:30]} Nxc6 {[%emt 0:01:30]} 11. Bb5 {[%emt 0:00:30]} O-O {[%emt 0:01:30]} 12. Bxc6 {[%emt 0:00:00]} Rc8 {[%emt 0:00:00]} 13. Bb7 {[%emt 0:08:00]} Rb8 {[%emt 0:00:00]} 14. Bxc7 {[%emt 0:04:30]} Qxc7 {[%emt 0:00:30]} 15. c6 {[%emt 0:00:00]} Ne4 {[%emt 0:02:30]} 16. Nc3 {[%emt 0:02:00]} Nxc3 {[%emt 0:05:30]} 17. Qxc3 {[%emt 0:02:30]} f5 {[%emt 0:01:30]} 18. f4 {[%emt 0:02:30]} Be8 {[%emt 0:01:30]} 19. O-O {[%emt 0:00:30]} h6 {[%emt 0:02:30]} 20. Rfc1 {[%emt 0:02:30]} g5 {[%emt 0:04:30]} 21. g3 {[%emt 0:00:30]} Kh7 {[%emt 0:07:30]} 22. Qa3 {[%emt 0:00:30]} Rg8 {[%emt 0:00:30]} 23. Qxa7 {[%emt 0:07:30]} gxf4 {[%emt 0:00:30]} 24. Qxb8 {[%emt 0:01:30]} Qxb8 {[%emt 0:02:30]} 25. c7 {[%emt 0:00:00]} Qxb7 {[%emt 0:00:30]} 26. c8=Q {[%emt 0:00:00]} Qxc8 {[%emt 0:01:30]} 27. Rxc8 {[%emt 0:00:00]} fxg3 {[%emt 0:04:30]} 28. hxg3 {[%emt 0:00:00]} Rxg3+ {[%emt 0:00:30]} 29. Kf2 {[%emt 0:00:30]} Rg8 {[%emt 0:00:00]} 30. Rac1 {[%emt 0:00:30]} h5 {[%emt 0:02:00]} 31. R1c7+ {[%emt 0:00:30]} Kg6 {[%emt 0:00:30]} 32. Re7 {[%emt 0:00:30]} Bf7 {[%emt 0:00:30]} 33. Rxg8+ {[%emt 0:00:30]} Bxg8 {[%emt 0:00:30]} 34. Kg3 {[%emt 0:00:00]} Bf7 {[%emt 0:00:30]} 35. Rb7 {[%emt 0:00:00]} b5 {[%emt 0:00:30]} 36. Rxb5 {[%emt 0:00:30]} Kg5 {[%emt 0:00:00]} 37. a4 {[%emt 0:00:30]} h4+ {[%emt 0:01:00]} 38. Kh3 {[%emt 0:00:00]} Bh5 {[%emt 0:00:00]} 39. a5 {[%emt 0:00:00]} Bg4+ {[%emt 0:00:00]} 40. Kh2 {[%emt 0:00:30]} f4 {[%emt 0:00:30]} 41. exf4+ {[%emt 0:00:30]} Kxf4 {[%emt 0:00:30]} 42. a6 {[%emt 0:00:00]} e5 {[%emt 0:02:30]} 43. a7 {[%emt 0:00:00]} e4 {[%emt 0:00:30]} 44. a8=Q {[%emt 0:00:00]} e3 {[%emt 0:00:00]} 45. Qxd5 {[%emt 0:00:00]} e2 {[%emt 0:00:00]} 46. Qe5+ {[%emt 0:00:30]} Kf3 {[%emt 0:00:00]} 47. Rb3+ {[%emt 0:00:00]} Kf2 {[%emt 0:00:00]} 48. Qf4+ {[%emt 0:00:00]} Ke1 {[%emt 0:00:30]} 49. Kg1 {[%emt 0:00:30]} h3 {[%emt 0:00:30]} 50. Qc1# {[%emt 0:00:00]} 1-0

[Event "7th Cesme Open-B 2019"]
[Site "Cesme"]
[Date "2019.06.24"]
[Round "1"]
[White "Temel, Burcu Melis"]
[Black "Sakmak, Kutay"]
[Result "1/2-1/2"]
[ECO "A05"]
[WhiteElo "1815"]
[BlackElo "1355"]
[Annotator "NA"]
[PlyCount "60"]
[EventDate "2019.06.24"]
[EventType "swiss"]
[EventCountry "TUR"]
[SourceTitle "playchess.com"]
[Source "ChessBase"]
[SourceQuality "1"]
[TimeControl "5400+30"]

1. e4 c5 2. Nf3 g6 3. d3 Bg7 4. g3 Nc6 5. Bg2 Nf6 6. O-O d6 7. c3 O-O 8. Nbd2 Qb6 {[%emt 0:06:00]} 9. Nc4 {[%emt 0:09:30]} Qc7 {[%emt 0:03:30]} 10. a4 {[%emt 0:00:30]} Be6 {[%emt 0:03:30]} 11. Nfd2 {[%emt 0:04:30]} Rfd8 {[%emt 0:02:30]} 12. Qe2 {[%emt 0:06:30]} d5 {[%emt 0:06:30]} 13. exd5 {[%emt 0:00:00]} Bxd5 {[%emt 0:00:30]} 14. Ne4 {[%emt 0:00:00]} Bxc4 {[%emt 0:02:30]} 15. dxc4 {[%emt 0:00:30]} Nxe4 {[%emt 0:17:30]} 16. Bxe4 {[%emt 0:01:30]} Rac8 {[%emt 0:12:30]} 17. Be3 {[%emt 0:05:30]} b6 {[%emt 0:03:30]} 18. f4 {[%emt 0:03:30]} Rd6 {[%emt 0:02:30]} 19. f5 {[%emt 0:02:30]} Qd7 {[%emt 0:01:30]} 20. Bf4 {[%emt 0:05:30]} e5 {[%emt 0:04:30]} 21. fxe6 {[%emt 0:04:30]} Rxe6 {[%emt 0:00:30]} 22. Qg2 {[%emt 0:00:30]} Rce8 {[%emt 0:06:30]} 23. Bd5 {[%emt 0:03:30]} Re2 {[%emt 0:01:30]} 24. Qf3 {[%emt 0:00:00]} Qh3 {[%emt 0:02:30]} 25. g4 {[%emt 0:00:00]} Qxf3 {[%emt 0:00:30]} 26. Rxf3 {[%emt 0:00:00]} Nd8 {[%emt 0:00:00]} 27. Rd1 {[%emt 0:03:00]} Rxb2 {[%emt 0:03:00]} 28. Bg5 {[%emt 0:02:30]} Ne6 {[%emt 0:02:30]} 29. Bxe6 {[%emt 0:00:30]} fxe6 {[%emt 0:00:30]} 30. Rd7 {[%emt 0:00:30]} Rf8 {[%emt 0:00:30]} 1/2-1/2

[Event "7th Cesme Open-B 2019"]
[Site "Cesme"]
[Date "2019.06.25"]
[Round "2"]
[White "Ozcan, Kadir Kutay"]
[Black "Guleryuz, Kuzey"]
[Result "1-0"]
[ECO "B23"]
[WhiteElo "1820"]
[BlackElo "1435"]
[Annotator "NA"]
[PlyCount "89"]
[EventDate "2019.06.24"]
[EventType "swiss"]
[EventCountry "TUR"]
[SourceTitle "playchess.com"]
[Source "ChessBase"]
[SourceQuality "1"]
[TimeControl "5400+30"]

1. e4 {[%emt 0:00:30]} c5 {[%emt 0:00:30]} 2. Nc3 {[%emt 0:00:00]} Nc6 {[%emt 0:00:00]} 3. Bb5 {[%emt 0:00:00]} Nd4 {[%emt 0:00:00]} 4. Nf3 {[%emt 0:00:30]} Nxb5 {[%emt 0:00:30]} 5. Nxb5 {[%emt 0:00:30]} a6 {[%emt 0:02:30]} 6. Nc3 {[%emt 0:00:30]} d6 {[%emt 0:00:30]} 7. h3 {[%emt 0:00:00]} Nf6 {[%emt 0:00:30]} 8. d3 {[%emt 0:00:00]} e6 {[%emt 0:00:30]} 9. Bg5 {[%emt 0:00:30]} Be7 {[%emt 0:01:30]} 10. Qd2 {[%emt 0:00:30]} b5 {[%emt 0:01:30]} 11. O-O {[%emt 0:00:30]} Bb7 {[%emt 0:01:30]} 12. Qe2 {[%emt 0:01:30]} O-O {[%emt 0:00:00]} 13. Nd1 {[%emt 0:05:30]} h6 {[%emt 0:04:00]} 14. Bd2 {[%emt 0:00:30]} Nd7 {[%emt 0:01:30]} 15. Nh2 {[%emt 0:00:30]} Ne5 {[%emt 0:05:30]} 16. f4 {[%emt 0:00:30]} Nc6 {[%emt 0:00:00]} 17. c3 {[%emt 0:02:30]} a5 {[%emt 0:03:00]} 18. Ne3 {[%emt 0:01:30]} Ba6 {[%emt 0:02:30]} 19. f5 {[%emt 0:00:30]} b4 {[%emt 0:02:30]} 20. c4 {[%emt 0:01:30]} Nd4 {[%emt 0:01:30]} 21. Qg4 {[%emt 0:01:30]} Bc8 {[%emt 0:04:30]} 22. Nf3 {[%emt 0:02:30]} Bf6 {[%emt 0:02:30]} 23. Rab1 {[%emt 0:04:30]} a4 {[%emt 0:06:30]} 24. Kh1 {[%emt 0:00:00]} Ne2 {[%emt 0:01:30]} 25. Nh2 {[%emt 0:04:00]} Nd4 {[%emt 0:00:30]} 26. Qh5 {[%emt 0:00:30]} Bg5 {[%emt 0:04:30]} 27. Rbd1 {[%emt 0:08:30]} Kh7 {[%emt 0:08:30]} 28. Rde1 {[%emt 0:03:30]} exf5 {[%emt 0:00:30]} 29. h4 {[%emt 0:01:30]} Bxh4 {[%emt 0:00:30]} 30. Nxf5 {[%emt 0:02:30]} Nxf5 {[%emt 0:00:30]} 31. exf5 {[%emt 0:00:30]} Bxe1 {[%emt 0:01:30]} 32. Rxe1 {[%emt 0:00:30]} Qf6 {[%emt 0:02:30]} 33. Rf1 {[%emt 0:00:30]} Qxb2 {[%emt 0:05:30]} 34. Bc1 {[%emt 0:00:30]} Qc2 {[%emt 0:00:30]} 35. f6 {[%emt 0:01:30]} Bb7 {[%emt 0:00:30]} 36. Qh3 {[%emt 0:57:30]} Bxg2+ {[%emt 0:06:30]} 37. Qxg2 {[%emt 0:00:30]} Qxg2+ {[%emt 0:00:30]} 38. Kxg2 {[%emt 0:00:00]} b3 {[%emt 0:01:30]} 39. fxg7 {[%emt 0:00:00]} Kxg7 {[%emt 0:00:30]} 40. Ng4 {[%emt 0:00:00]} Rfb8 {[%emt 0:02:30]} 41. Bxh6+ {[%emt 0:00:00]} Kg6 {[%emt 0:00:30]} 42. Rf6+ {[%emt 0:00:00]} Kh5 {[%emt 0:02:30]} 43. Kh3 {[%emt 0:00:00]} Rg8 {[%emt 0:00:30]} 44. Bd2 {[%emt 0:00:00]} Rh8 {[%emt 0:00:30]} 45. Kg3 {[%emt 0:00:00]} 1-0

[Event "7th Cesme Open-B 2019"]
[Site "Cesme"]
[Date "2019.06.25"]
[Round "2"]
[White "Yenil, Mucahit"]
[Black "Kayis, Gulcan Sena"]
[Result "0-1"]
[ECO "B27"]
[WhiteElo "1813"]
[BlackElo "1569"]
[Annotator "NA"]
[PlyCount "118"]
[EventDate "2019.06.24"]
[EventType "swiss"]
[EventCountry "TUR"]
[SourceTitle "playchess.com"]
[Source "ChessBase"]
[SourceQuality "1"]
[TimeControl "5400+30"]

1. e4 {[%emt 0:09:30]} c5 {[%emt 0:00:30]} 2. d4 {[%emt 0:00:30]} cxd4 {[%emt 0:00:30]} 3. Nf3 {[%emt 0:00:00]} g6 {[%emt 0:00:00]} 4. c3 {[%emt 0:00:00]} Bg7 {[%emt 0:00:00]} 5. cxd4 {[%emt 0:00:00]} d5 {[%emt 0:00:30]} 6. e5 {[%emt 0:00:00]} Bg4 {[%emt 0:00:30]} 7. Nc3 {[%emt 0:00:30]} Nc6 {[%emt 0:00:30]} 8. Qb3 {[%emt 0:00:00]} Bxf3 {[%emt 0:02:30]} 9. gxf3 {[%emt 0:00:00]} Nxd4 {[%emt 0:00:30]} 10. Qa4+ {[%emt 0:00:30]} Nc6 {[%emt 0:00:30]} 11. f4 {[%emt 0:00:00]} Nh6 {[%emt 0:08:30]} 12. Qb5 {[%emt 0:02:00]} O-O {[%emt 0:04:30]} 13. Qxd5 {[%emt 0:00:30]} Qb6 {[%emt 0:08:30]} 14. Bg2 {[%emt 0:02:30]} Rfd8 {[%emt 0:03:30]} 15. Qe4 {[%emt 0:00:00]} Rd4 {[%emt 0:01:30]} 16. Qe2 {[%emt 0:00:00]} Nf5 {[%emt 0:05:30]} 17. O-O {[%emt 0:01:30]} Rad8 {[%emt 0:02:30]} 18. Be4 {[%emt 0:00:00]} R4d7 {[%emt 0:04:30]} 19. Bxf5 {[%emt 0:00:00]} Nd4 {[%emt 0:02:30]} 20. Bxd7 {[%emt 0:05:30]} Nxe2+ {[%emt 0:00:30]} 21. Nxe2 {[%emt 0:00:00]} Rxd7 {[%emt 0:00:30]} 22. b3 {[%emt 0:04:00]} Qb5 {[%emt 0:02:30]} 23. Ng3 {[%emt 0:01:30]} h5 {[%emt 0:00:30]} 24. Be3 {[%emt 0:01:30]} Qd3 {[%emt 0:02:30]} 25. Rad1 {[%emt 0:00:30]} Qxd1 {[%emt 0:00:30]} 26. Rxd1 {[%emt 0:00:30]} Rxd1+ {[%emt 0:00:30]} 27. Kg2 {[%emt 0:00:30]} b6 {[%emt 0:00:30]} 28. Ne4 {[%emt 0:00:00]} Ra1 {[%emt 0:00:30]} 29. a4 {[%emt 0:00:00]} Rb1 {[%emt 0:00:30]} 30. Nd2 {[%emt 0:00:30]} Rb2 {[%emt 0:00:00]} 31. Kf3 {[%emt 0:00:30]} e6 {[%emt 0:00:00]} 32. Ke2 {[%emt 0:00:30]} Bf8 {[%emt 0:01:30]} 33. Bd4 {[%emt 0:00:30]} Ra2 {[%emt 0:00:30]} 34. Bc3 {[%emt 0:00:30]} a5 {[%emt 0:01:30]} 35. Kd3 {[%emt 0:02:30]} Bb4 {[%emt 0:03:30]} 36. Bxb4 {[%emt 0:00:30]} axb4 {[%emt 0:00:00]} 37. Ne4 {[%emt 0:00:30]} Kf8 {[%emt 0:00:00]} 38. Kc4 {[%emt 0:03:30]} Re2 {[%emt 0:00:30]} 39. Nf6 {[%emt 0:02:30]} Rxf2 {[%emt 0:03:30]} 40. Nd7+ {[%emt 0:01:30]} Ke7 {[%emt 0:00:30]} 41. Nxb6 {[%emt 0:00:00]} Rxh2 {[%emt 0:00:30]} 42. Nc8+ {[%emt 0:02:00]} Kd7 {[%emt 0:00:30]} 43. Nd6 {[%emt 0:00:30]} Rf2 {[%emt 0:02:30]} 44. a5 {[%emt 0:00:30]} Rxf4+ {[%emt 0:00:30]} 45. Kb5 {[%emt 0:00:30]} h4 {[%emt 0:01:30]} 46. a6 {[%emt 0:02:30]} Rf2 {[%emt 0:00:30]} 47. Ne4 {[%emt 0:00:30]} Ra2 {[%emt 0:00:30]} 48. Kb6 {[%emt 0:00:30]} h3 {[%emt 0:00:30]} 49. a7 {[%emt 0:00:30]} h2 {[%emt 0:00:30]} 50. Ng3 {[%emt 0:01:30]} Kc8 {[%emt 0:00:30]} 51. Nh1 {[%emt 0:00:30]} g5 {[%emt 0:00:30]} 52. Ng3 {[%emt 0:00:00]} g4 {[%emt 0:00:30]} 53. Nh1 {[%emt 0:00:00]} Ra1 {[%emt 0:02:30]} 54. Ng3 {[%emt 0:00:30]} Rxa7 {[%emt 0:03:30]} 55. Kxa7 {[%emt 0:00:30]} Kc7 {[%emt 0:00:00]} 56. Ka6 {[%emt 0:00:30]} Kc6 {[%emt 0:00:00]} 57. Ka5 {[%emt 0:00:00]} Kd5 {[%emt 0:00:00]} 58. Kxb4 {[%emt 0:00:00]} Kxe5 {[%emt 0:00:00]} 59. Ka5 {[%emt 0:01:30]} Kf4 {[%emt 0:00:00]} 0-1

[Event "7th Cesme Open-B 2019"]
[Site "Cesme"]
[Date "2019.06.25"]
[Round "2"]
[White "Kocakaplan, Emre"]
[Black "Ozates, Veysel"]
[Result "1-0"]
[ECO "A06"]
[WhiteElo "1718"]
[BlackElo "1606"]
[Annotator "NA"]
[PlyCount "75"]
[EventDate "2019.06.24"]
[EventType "swiss"]
[EventCountry "TUR"]
[SourceTitle "playchess.com"]
[Source "ChessBase"]
[SourceQuality "1"]
[TimeControl "5400+30"]

1. Nf3 {[%emt 0:00:30]} Nf6 {[%emt 0:00:30]} 2. e3 {[%emt 0:00:00]} d5 {[%emt 0:00:30]} 3. b3 {[%emt 0:00:00]} Bg4 {[%emt 0:00:30]} 4. Bb2 {[%emt 0:00:30]} Nbd7 {[%emt 0:00:30]} 5. d4 {[%emt 0:01:30]} e6 {[%emt 0:00:30]} 6. Be2 {[%emt 0:00:00]} Bb4+ {[%emt 0:01:30]} 7. Nbd2 {[%emt 0:02:00]} O-O {[%emt 0:03:30]} 8. O-O {[%emt 0:00:00]} Rc8 {[%emt 0:03:30]} 9. a3 {[%emt 0:02:00]} Be7 {[%emt 0:00:00]} 10. c4 {[%emt 0:01:30]} c6 {[%emt 0:04:00]} 11. c5 {[%emt 0:01:30]} a5 {[%emt 0:02:30]} 12. b4 {[%emt 0:01:30]} b5 {[%emt 0:01:30]} 13. Ne5 {[%emt 0:09:30]} Bxe2 {[%emt 0:00:30]} 14. Qxe2 {[%emt 0:00:00]} Nxe5 {[%emt 0:02:30]} 15. dxe5 {[%emt 0:00:00]} Nd7 {[%emt 0:00:30]} 16. Qg4 {[%emt 0:00:30]} Re8 {[%emt 0:04:30]} 17. f4 {[%emt 0:02:30]} f5 {[%emt 0:00:30]} 18. Qh3 {[%emt 0:00:30]} a4 {[%emt 0:05:30]} 19. Nf3 {[%emt 0:00:30]} Rc7 {[%emt 0:02:30]} 20. Nd4 {[%emt 0:02:30]} Bf8 {[%emt 0:01:30]} 21. g4 {[%emt 0:00:30]} g6 {[%emt 0:02:30]} 22. Kh1 {[%emt 0:00:30]} Bg7 {[%emt 0:01:30]} 23. Rg1 {[%emt 0:00:30]} Nf8 {[%emt 0:01:30]} 24. Rg2 {[%emt 0:00:30]} Qe7 {[%emt 0:04:30]} 25. Rag1 {[%emt 0:00:30]} Qd8 {[%emt 0:03:30]} 26. gxf5 {[%emt 0:00:30]} exf5 {[%emt 0:01:30]} 27. Qg3 {[%emt 0:03:30]} Ne6 {[%emt 0:02:30]} 28. Nf3 {[%emt 0:00:30]} Rf7 {[%emt 0:01:30]} 29. h4 {[%emt 0:01:30]} Kh8 {[%emt 0:04:30]} 30. h5 {[%emt 0:01:30]} gxh5 {[%emt 0:00:30]} 31. Qh3 {[%emt 0:00:30]} Ree7 {[%emt 0:03:30]} 32. Qxh5 {[%emt 0:01:30]} Qf8 {[%emt 0:05:30]} 33. Rh2 {[%emt 0:02:30]} h6 {[%emt 0:00:00]} 34. Nh4 {[%emt 0:00:00]} Kh7 {[%emt 0:04:00]} 35. Ng6 {[%emt 0:01:00]} Qe8 {[%emt 0:00:30]} 36. Nxe7 {[%emt 0:00:30]} Qxe7 {[%emt 0:00:30]} 37. Qg6+ {[%emt 0:00:30]} Kh8 {[%emt 0:00:00]} 38. Rxh6+ {[%emt 0:00:00]} 1-0

[Event "7th Cesme Open-B 2019"]
[Site "Cesme"]
[Date "2019.06.25"]
[Round "2"]
[White "Ugur, Cem"]
[Black "Yucesoy, Atil"]
[Result "1-0"]
[ECO "B01"]
[WhiteElo "1623"]
[BlackElo "1861"]
[Annotator "NA"]
[PlyCount "77"]
[EventDate "2019.06.24"]
[EventType "swiss"]
[EventCountry "TUR"]
[SourceTitle "playchess.com"]
[Source "ChessBase"]
[SourceQuality "1"]
[TimeControl "5400+30"]

1. e4 {[%emt 0:00:30]} d5 {[%emt 0:00:30]} 2. exd5 {[%emt 0:00:30]} Qxd5 {[%emt 0:00:30]} 3. Nc3 {[%emt 0:00:00]} Qd6 {[%emt 0:00:00]} 4. d4 {[%emt 0:00:00]} Nf6 {[%emt 0:00:00]} 5. Nf3 {[%emt 0:02:30]} Bg4 {[%emt 0:00:00]} 6. Nb5 {[%emt 0:08:30]} Qb6 {[%emt 0:01:00]} 7. c4 {[%emt 0:04:30]} c6 {[%emt 0:02:30]} 8. Nc3 {[%emt 0:02:30]} e6 {[%emt 0:02:30]} 9. Qb3 {[%emt 0:02:30]} Qxb3 {[%emt 0:04:30]} 10. axb3 {[%emt 0:00:30]} Na6 {[%emt 0:00:30]} 11. Be3 {[%emt 0:04:30]} Nb4 {[%emt 0:05:30]} 12. O-O-O {[%emt 0:00:30]} Bf5 {[%emt 0:01:30]} 13. Ne1 {[%emt 0:07:30]} O-O-O {[%emt 0:20:30]} 14. Nd3 {[%emt 0:02:30]} Ng4 {[%emt 0:08:30]} 15. Nxb4 {[%emt 0:02:30]} Bxb4 {[%emt 0:00:30]} 16. Bd3 {[%emt 0:00:30]} Bxd3 {[%emt 0:15:30]} 17. Rxd3 {[%emt 0:00:30]} f5 {[%emt 0:07:30]} 18. h3 {[%emt 0:19:30]} Ne5 {[%emt 0:00:30]} 19. Rdd1 {[%emt 0:00:30]} Ng6 {[%emt 0:01:30]} 20. d5 {[%emt 0:03:30]} exd5 {[%emt 0:11:31]} 21. cxd5 {[%emt 0:03:30]} c5 {[%emt 0:01:45]} 22. Bg5 {[%emt 0:04:30]} Rd7 {[%emt 0:00:31]} 23. Rhe1 {[%emt 0:03:30]} h6 {[%emt 0:00:37]} 24. Re6 {[%emt 0:00:30]} hxg5 {[%emt 0:05:52]} 25. Rxg6 {[%emt 0:00:00]} Rh5 {[%emt 0:01:27]} 26. Nb5 {[%emt 0:02:00]} g4 {[%emt 0:02:32]} 27. Nxa7+ {[%emt 0:01:30]} Kb8 {[%emt 0:00:19]} 28. Nb5 {[%emt 0:00:30]} gxh3 {[%emt 0:00:50]} 29. gxh3 {[%emt 0:00:30]} Rxh3 {[%emt 0:00:00]} 30. Re6 {[%emt 0:02:30]} Ba5 {[%emt 0:00:20]} 31. Re8+ {[%emt 0:05:09]} Bd8 {[%emt 0:00:30]} 32. Kc2 {[%emt 0:02:26]} Rf3 {[%emt 0:00:18]} 33. d6 {[%emt 0:05:42]} Rxf2+ {[%emt 0:00:30]} 34. Kc3 {[%emt 0:00:30]} Rf4 {[%emt 0:00:44]} 35. Rg1 {[%emt 0:02:54]} Rb4 {[%emt 0:01:00]} 36. Rxg7 {[%emt 0:00:43]} Re4 {[%emt 0:02:45]} 37. Rf8 {[%emt 0:01:57]} Kc8 {[%emt 0:03:15]} 38. Na7+ {[%emt 0:00:30]} Kb8 {[%emt 0:00:00]} 39. Rxd7 {[%emt 0:00:05]} 1-0

[Event "7th Cesme Open-B 2019"]
[Site "Cesme"]
[Date "2019.06.25"]
[Round "3"]
[White "Gumustas, Ilgaz"]
[Black "Acikgoz, Kagan Kerem"]
[Result "1/2-1/2"]
[ECO "B31"]
[WhiteElo "1707"]
[BlackElo "1814"]
[Annotator "NA"]
[PlyCount "163"]
[EventDate "2019.06.24"]
[EventType "swiss"]
[EventCountry "TUR"]
[SourceTitle "playchess.com"]
[Source "ChessBase"]
[SourceQuality "1"]
[TimeControl "5400+30"]

1. e4 {[%emt 0:00:30]} c5 {[%emt 0:00:30]} 2. Nf3 {[%emt 0:00:30]} Nc6 {[%emt 0:00:30]} 3. Bb5 {[%emt 0:00:30]} g6 {[%emt 0:00:00]} 4. Bxc6 {[%emt 0:00:00]} dxc6 {[%emt 0:00:00]} 5. d3 {[%emt 0:00:00]} Bg7 {[%emt 0:00:00]} 6. h3 {[%emt 0:00:30]} Nf6 {[%emt 0:00:00]} 7. O-O {[%emt 0:00:00]} O-O {[%emt 0:00:00]} 8. Nc3 {[%emt 0:00:00]} b6 {[%emt 0:00:00]} 9. Be3 {[%emt 0:01:30]} e5 {[%emt 0:00:30]} 10. Qd2 {[%emt 0:00:00]} Qd6 {[%emt 0:01:30]} 11. Bh6 {[%emt 0:00:00]} a5 {[%emt 0:04:30]} 12. Bxg7 {[%emt 0:00:30]} Kxg7 {[%emt 0:00:30]} 13. Qg5 {[%emt 0:09:30]} Re8 {[%emt 0:03:30]} 14. Nd2 {[%emt 0:14:30]} h6 {[%emt 0:01:30]} 15. Nc4 {[%emt 0:01:30]} Qc7 {[%emt 0:00:30]} 16. Qe3 {[%emt 0:01:30]} Nh5 {[%emt 0:03:30]} 17. Ne2 {[%emt 0:00:30]} Nf4 {[%emt 0:10:30]} 18. Nxf4 {[%emt 0:07:30]} exf4 {[%emt 0:00:00]} 19. Qf3 {[%emt 0:00:30]} b5 {[%emt 0:07:00]} 20. Nd2 {[%emt 0:00:00]} Qe5 {[%emt 0:00:30]} 21. c3 {[%emt 0:22:00]} a4 {[%emt 0:03:30]} 22. a3 {[%emt 0:00:30]} Be6 {[%emt 0:02:30]} 23. Kh2 {[%emt 0:01:30]} Rad8 {[%emt 0:04:30]} 24. Rad1 {[%emt 0:00:30]} Qd6 {[%emt 0:08:30]} 25. Nb1 {[%emt 0:03:30]} Bb3 {[%emt 0:02:30]} 26. Rd2 {[%emt 0:00:00]} Qf6 {[%emt 0:08:30]} 27. g3 {[%emt 0:09:00]} fxg3+ {[%emt 0:01:30]} 28. Qxg3 {[%emt 0:00:00]} c4 {[%emt 0:01:30]} 29. dxc4 {[%emt 0:04:00]} Bxc4 {[%emt 0:01:30]} 30. Re1 {[%emt 0:01:30]} Bd3 {[%emt 0:07:30]} 31. f3 {[%emt 0:03:30]} Bxb1 {[%emt 0:00:30]} 32. Rxd8 {[%emt 0:00:30]} Rxd8 {[%emt 0:00:00]} 33. Rxb1 {[%emt 0:00:30]} Rd2+ {[%emt 0:00:00]} 34. Kg1 {[%emt 0:05:44]} Qe6 {[%emt 0:01:30]} 35. Qf4 {[%emt 0:02:17]} Rc2 {[%emt 0:00:30]} 36. Rd1 {[%emt 0:00:22]} Qxh3 {[%emt 0:00:30]} 37. Rd2 {[%emt 0:01:31]} Rc1+ {[%emt 0:07:30]} 38. Kf2 {[%emt 0:00:07]} Qh1 {[%emt 0:00:30]} 39. Ke3 {[%emt 0:00:27]} Qg1+ {[%emt 0:01:39]} 40. Kd3 {[%emt 0:01:01]} Qf1+ {[%emt 0:00:21]} 41. Kd4 {[%emt 0:04:56]} Qc4+ {[%emt 0:00:46]} 42. Ke3 {[%emt 0:00:00]} Re1+ {[%emt 0:04:05]} 43. Kf2 {[%emt 0:00:30]} Qf1+ {[%emt 0:00:30]} 44. Kg3 {[%emt 0:00:30]} Qg1+ {[%emt 0:00:30]} 45. Rg2 {[%emt 0:00:30]} Qc5 {[%emt 0:00:30]} 46. Qd2 {[%emt 0:00:46]} Rf1 {[%emt 0:07:37]} 47. Qf4 {[%emt 0:05:44]} Re1 {[%emt 0:05:54]} 48. Qd2 {[%emt 0:00:12]} Qg5+ {[%emt 0:00:39]} 49. Qxg5 {[%emt 0:00:30]} hxg5 {[%emt 0:00:03]} 50. Kf2 {[%emt 0:00:00]} Rb1 {[%emt 0:01:25]} 51. Ke3 {[%emt 0:00:00]} Kf6 {[%emt 0:00:20]} 52. Kd4 {[%emt 0:00:23]} Ke6 {[%emt 0:00:29]} 53. Kc5 {[%emt 0:00:22]} Kd7 {[%emt 0:00:08]} 54. Kb6 {[%emt 0:00:44]} Rd1 {[%emt 0:00:46]} 55. Rxg5 {[%emt 0:02:37]} Rd2 {[%emt 0:00:41]} 56. Rc5 {[%emt 0:00:06]} Rxb2 {[%emt 0:01:45]} 57. Rxc6 {[%emt 0:00:06]} Rf2 {[%emt 0:01:28]} 58. Rf6 {[%emt 0:01:07]} Ke7 {[%emt 0:00:10]} 59. e5 {[%emt 0:00:35]} Rb2 {[%emt 0:00:56]} 60. f4 {[%emt 0:00:41]} Rb3 {[%emt 0:00:38]} 61. Rc6 {[%emt 0:00:20]} Rxa3 {[%emt 0:01:02]} 62. Kxb5 {[%emt 0:00:10]} Ra1 {[%emt 0:00:00]} 63. Ra6 {[%emt 0:02:27]} a3 {[%emt 0:00:00]} 64. Kc6 {[%emt 0:00:00]} a2 {[%emt 0:00:06]} 65. c4 {[%emt 0:00:40]} Rc1 {[%emt 0:00:30]} 66. Rxa2 {[%emt 0:00:30]} Rxc4+ {[%emt 0:00:00]} 67. Kd5 {[%emt 0:00:04]} Rxf4 {[%emt 0:00:15]} 68. Ra7+ {[%emt 0:00:00]} Kf8 {[%emt 0:02:20]} 69. e6 {[%emt 0:00:00]} fxe6+ {[%emt 0:00:35]} 70. Kxe6 {[%emt 0:00:00]} Rf1 {[%emt 0:00:13]} 71. Ke5 {[%emt 0:00:25]} g5 {[%emt 0:00:15]} 72. Ke4 {[%emt 0:00:10]} Rf4+ {[%emt 0:00:23]} 73. Ke5 {[%emt 0:00:32]} Rf2 {[%emt 0:01:00]} 74. Ke4 {[%emt 0:00:03]} Rf6 {[%emt 0:00:25]} 75. Ra5 {[%emt 0:00:49]} Rg6 {[%emt 0:00:26]} 76. Kf5 {[%emt 0:00:07]} Kg7 {[%emt 0:00:05]} 77. Kg4 {[%emt 0:01:58]} Kh6 {[%emt 0:00:13]} 78. Ra4 {[%emt 0:00:42]} Rf6 {[%emt 0:00:24]} 79. Rb4 {[%emt 0:00:35]} Kg6 {[%emt 0:00:10]} 80. Ra4 {[%emt 0:00:00]} Rb6 {[%emt 0:00:52]} 81. Rc4 {[%emt 0:00:00]} Kf6 {[%emt 0:00:11]} 82. Ra4 {[%emt 0:00:00]} 1/2-1/2